Workbook

Sheet Resumo
A1: TOTAL DOS CUSTOS DIRETOS | N1: =FSUP!N32 -> 1477812.08
A2: TOTAL DO CUSTOS INDIRETOS | N2: =FSUP!N36 -> 473526.91
A3: TOTAL DA PROPOSTA | N3: =FSUP!N37 -> 1951338.99

Sheet FSUP
A3: PROPOSTA FINANCEIRA SUP. E APOIO A FISC. DE OBRA | N3: CODIGO:
N4: FSUP
A5: NOME DA CONSULTORA:
A7: PROJETO: | E7: OBJETO: | N7: EDITAL:
A8: Meio Ambiente | E8: Regularidade Ambiental - PGAI Projeto Hidroagrícola Jequitaí
A9: SERVIÇOS PAGOS A PREÇO UNITÁRIO
A10: MOBILIZAÇÃO/DESMOBILIZAÇÃO
A11: A1 - MOBILIZAÇÃO (FSUP-IV) | N11: ='FSUP-IV Mobiliz Desmob'!H41 -> 1402.81
A12: A2 - DESMOBILIZAÇÃO (FSUP-IV) | N12: ='FSUP-IV Mobiliz Desmob'!L41 -> 1097.71
A13: A - TOTAL DOS CUSTOS COM MOBILIZAÇÃO E DESMOBILIZAÇÃO | N13: =N11+N12 -> 2500.52
A14: MÃO-DE-OBRA
A15: B1 - TOTAL DE SALÁRIO DA EQUIPE COM VÍNCULO (FSUP-I) | N15: ='FSUP-I EQUIPE TÉCNICA'!L42 -> 1096942.74
A16: B2 - TOTAL DE SALÁRIO DO AUTÔNOMO (FSUP-I) | N16: ='FSUP-I EQUIPE TÉCNICA'!M14 -> 0
A17: B - TOTAL DOS CUSTOS DE SALÁRIOS DA EQUIPE | N17: =SUM(N15:O16) -> 1096942.74
A18: =CONCATENATE("C1 - ENCARGOS SOCIAiS DE B1 = ", 100*'FSUP-VII Det. Enc. Sociais'!F49,"%DO B1") -> C1 - ENCARGOS SOCIAiS DE B1 = 73,23%DO B1 | N18: 0
A19: C2 - ENCARGOS SOCIAIS DE B2 (20% DO B2) | N19: =ROUND(N16*0.2,2) -> 0
A20: C - TOTAL DOS CUSTOS COM ENCARGOS SOCIAIS | N20: =SUM(N18:O19) -> 0
A21: D1 - CUSTO TOTAL DAS PASSAGENS AÉREAS E TERRESTRES (FSUP-II) | N21: ='FSUP-II VIAGENS'!H32 -> 10977.1
A22: D2 - CUSTO TOTAL DAS DIÁRIAS (FSUP-II) | N22: ='FSUP-II VIAGENS'!M32 -> 27764.1
A23: D - TOTAL DO CUSTO COM VIAGENS | N23: =SUM(N21:O22) -> 38741.2
A25: MANUTENÇÃO OPERACIONAL
A26: 1 - CUSTO DOS VEÍCULOS (FSUP-III, ITEM 1) | N26: ='FSUP-III Manutenção Operac'!I14 -> 228340.28
A27: 2 - CUSTO DA MANUTENÇÃO E ADMINISTRAÇÃO DO ESCRITÓRIO DE APOIO (FSUP-III, ITEM 2) | N27: ='FSUP-III Manutenção Operac'!I24 -> 21726.84
A28: 3 - EQUIPAMENTO (FSUP-III, ITEM 3) | N28: ='FSUP-III Manutenção Operac'!I30 -> 23507.5
A29: 4 - SERVIÇOS GRÁFICOS/COMPUTAÇÃO (FSUP-III, ITEM 4) | N29: ='FSUP-III Manutenção Operac'!I38 -> 66053
A31: E - TOTAL DOS PREÇOS COM MANUTENÇÃO OPERACIONAL | N31: =SUM(N26:O30) -> 339627.62
A32: TOTAL DOS CUSTOS DIRETOS | N32: =SUM(N13+N17+N20+N23+N31) -> 1477812.08
A33: =CONCATENATE("F - CUSTOS DE ADMINISTRAÇÃO = ",'FSUP-V Det. custos Adm.'!F38,"% DO B") -> F - CUSTOS DE ADMINISTRAÇÃO = 8% DO B | N33: =ROUND(N17*'FSUP-V Det. custos Adm.'!$F$38/100,2) -> 87755.42
A34: G - REMUNERAÇÃO DA EMPRESA (LUCRO) = (10% DE A + B + C + D + E + F) | N34: =ROUND(0.1*(N13+N17+N20+N23+N31+N33),2) -> 156556.75
A35: =CONCATENATE("H - DESPESAS FISCAIS = (",'FSUP-VI Det. Desp Fiscais'!G29,"% DE (A + B + C + D + E + F + G)") -> H - DESPESAS FISCAIS = (13,31% DE (A + B + C + D + E + F + G) | N35: =ROUND('FSUP-VI Det. Desp Fiscais'!$G$29/100*(N13+N17+N20+N23+N31+N33+N34),2) -> 229214.74
A36: TOTAL DO CUSTOS INDIRETOS | N36: =SUM(N33:O35) -> 473526.91
A37: TOTAL DA PROPOSTA | N37: =N32+N36 -> 1951338.99
A38: NOME DO INFORMANTE: | J38: QUALIFICAÇÃO:
A40: ASSINATURA: | N40: DATA:
A42: OBSERVAÇÃO:

Sheet FSUP-I EQUIPE TÉCNICA
A3: SALÁRIOS DA EQUIPE TÉCNICA | L3: CODIGO:
L4: FSUP- I
A5: NOME DA CONSULTORA:
A7: PROJETO: | C7: OBJETO: | L7: EDITAL:
A8: Meio Ambiente | C8: =FSUP!E8 -> Regularidade Ambiental - PGAI Projeto Hidroagrícola Jequitaí
A9: EQUIPE TÉCNICA | E9: COMPOSIÇÃO DOS SALÁRIOS POR PROFISSÃO/FUNÇÃO | L9: CUSTOS
E10: SALÁRIO | F10: ENC. | G10: CUSTO | H10: R. EMP. | I10: DESP. | J10: SALÁRIO | K10: HORA | L10: SALÁRIO | M10: SALÁRIO
A11: PROFISSÃO/FUNÇÃO | C11: S | D11: QTD | E11: CATEG. | F11: SOCIAIS | G11: ADM. | H11: LUCRO | I11: FISCAIS | J11: MENSAL | K11: TÉCNICA | L11: B1 | M11: B2
A13: NÍVEL SUPERIOR | P13: Referência
A14: Profissional Pleno | C14: P0 | D14: 12 | E14: 19797.59 | F14: 0 | G14: 0 | H14: 0 | I14: 0 | J14: =SUM(E14:I14) -> 19797.59 | K14: =ROUND(J14/176,2) -> 112.49 | L14: =ROUND(D14*E14,2) -> 237571.08 | P14: Sinapi
A15: Profissional Médio - Eng Ambiental ou Sanitarista | C15: P2 | D15: 12 | E15: 13626.58 | F15: 0 | G15: 0 | H15: 0 | I15: 0 | J15: 13626.58 | K15: =ROUND(J15/176,2) -> 77.42 | L15: =ROUND(D15*E15,2) -> 163518.96 | P15: Sinapi
A16: Profissional Médio - Geólogo | C16: P2 | D16: 3 | E16: 10334.72 | F16: 0 | G16: 0 | H16: 0 | I16: 0 | J16: 10334.72 | K16: 58.72 | L16: =ROUND(D16*E16,2) -> 31004.16
A17: Profissional Médio - Biólogo | C17: P2 | D17: 4 | E17: 10378.72 | F17: 0 | G17: 0 | H17: 0 | I17: 0 | J17: 10378.72 | K17: 58.97 | L17: =ROUND(D17*E17,2) -> 41514.88
A18: Profissional Médio - Comunição Socioambiental / Assistente Social | C18: P2 | D18: 48 | E18: =(25.48*176)*(1+'FSUP-VII Det. Enc. Sociais'!F49) -> 7768.464704 | F18: 0 | G18: 0 | H18: 0 | I18: 0 | J18: 7768.464704 | K18: 44.14 | L18: =ROUND(D18*E18,2) -> 372886.31
A19: Profissional Médio - Eng Civil | C19: P2 | D19: 3 | E19: 17393.67 | F19: 0 | G19: 0 | H19: 0 | I19: 0 | J19: 17393.67 | K19: 98.83 | L19: =ROUND(D19*E19,2) -> 52181.01
A21: NÍVEL TÉCNICO
A22: Técnico Pleno | C22: T1 | D22: 30 | E22: 5348.32 | F22: 0 | G22: 0 | H22: 0 | I22: 0 | J22: =SUM(E22:I22) -> 5348.32 | K22: =ROUND(J22/176,2) -> 30.39 | L22: =ROUND(D22*E22,2) -> 160449.6 | P22: Sinapi
A35: NÍVEL AUXILIAR
A37: Auxiliar de Escritório e de Campo | C37: A2 | D37: 13 | E37: 2908.98 | F37: 0 | G37: 0 | H37: 0 | I37: 0 | J37: =SUM(E37:I37) -> 2908.98 | K37: 16.53 | L37: =ROUND(D37*E37,2) -> 37816.74 | P37: Sinapi | Q37: =72/36 -> 2
A39: APOIO
A42: TOTAIS DOS SALÁRIOS DA EQUIPE | L42: =ROUND(SUM(L13:L41),2) -> 1096942.74 | M42: =SUM(M13:M41) -> 0
A43: NOME DO INFORMANTE: | H43: QUALIFICAÇÃO:
A45: ASSINATURA: | L45: DATA:
A47: OBSERVAÇÃO:
A48: 1 - UTILIZAR OS PARÂMETROS DE CLASSIFICAÇÃO INDICADOS NO TSUP- II EQUIPE TÉCNICA
A49: 2- UTILIZAR OS SÍMBOLOS INDICADOS NO TSUP-II EQUIPE TÉCNICA
A50: 3- INDICAR A QUANTIDADE DE HOMENS POR CATEGORIA.
A51: 4- INIDCAR O SALÁRIO BASE DA CATEGORIA
A52: =CONCATENATE("5 - ENC. SOCIAIS, APLICAR NO MÁXIMO 20% PARA AUTÔNOMOS E ",100*'FSUP-VII Det. Enc. Sociais'!F49,"% PARA EMPREG. COM VÍNCULO DETALHAR NO FSUP-VII") -> 5 - ENC. SOCIAIS, APLICAR NO MÁXIMO 20% PARA AUTÔNOMOS E 73,23% PARA EMPREG. COM VÍNCULO DETALHAR NO FSUP-VII
A53: 6- CUSTO DE ADMINISTRAÇÃO, APLICAR NO MÁXIMO 25% SOBRE O SALÁRIO BASE DA CATEGORIA
A54: 7 - REMUN. DA EMPRESA (LUCRO), APLICAR NO MÁXIMO 10% SOBRE O SALÁRIO DA CATEG + ENCARGOS SOCIAIS + CUSTO DE ADM.
A55: 8 - DESP. FISCAIS, APLICAR O DF' CALCULADO NO FSUP-VI SOBRE O SALÁRIO DA CATEG. + ENC. SOCIAIS + CUSTO DE ADM. + LUCRO
A56: 9- PREÇO DO HOMEM MÊS POR CATEGORIA = SOMATÓRIO DOS ITENS (4) + (5) + (6) + (7) +(8)
A57: 10- PREÇO DA HORA TÉCNICA = (9) / 176
A58: 11 - SALÁRIOS DE B1 = SALARIO DOS EMPREGADOS COM VÍNCULO X QTD HOMEM MÊS. EXPORTAR O TOTAL PARA LINHA B1 DO FSUP
A59: 12 - SALÁRIO DE B2 = SALÁRIO DO AUTÔNOMO X QTD HOMEM X MÊS. EXPORTAR O TOTAL PARA A LINHA B2 DO FSUP

Sheet FSUP-II VIAGENS
A3: VIAGENS DA EQUIPE TÉCNICA | N3: CODIGO:
N4: FSUP-II
A5: NOME DA CONSULTORA:
A7: PROJETO: | C7: OBJETO:
A8: Meio Ambiente | C8: =FSUP!E8 -> Regularidade Ambiental - PGAI Projeto Hidroagrícola Jequitaí
A9: SIMBOLO | B9: ROTEIRO (ida e volta) | E9: PASSAGENS | L9: DIÁRIAS
E10: A/T | F10: QTD | G10: CUSTO | I10: PREÇO | K10: QTD | L10: CUSTO | N10: PREÇO
G11: UNITÁRIO | H11: TOTAL | I11: UNITÁRIO | J11: TOTAL | L11: UNITÁRIO | M11: TOTAL | N11: UNITÁRIO | O11: TOTAL | P11: Referência
A13: C/P0/P1/P2/T1 | B13: Sede/Diversos/Sede | E13: A | F13: 10 | G13: 1097.71 | H13: =ROUND(G13*F13,2) -> 10977.1 | I13: 0 | J13: =ROUND(F13*I13,2) -> 0 | K13: 91 | L13: 305.1 | M13: =ROUND(L13*K13,2) -> 27764.1 | N13: =0 -> 0 | O13: =ROUND(K13*N13,2) -> 0 | P13: Codevasf | U13: SDU - BSB - SDU | X13: =453.84+361.84 -> 815.68
A14: C/P0/P1/P2/T1/A2 | B14: Sede/Diversos/Sede | E14: T | U14: GRU - BSB - GRU | X14: =282.93+281.74 -> 564.67
U15: POA - BSB - POA | X15: =786.16+609.34 -> 1395.5
U16: SSA - BSB - SSA | X16: =864.36+750.64 -> 1615
Y17: Média | Z17: Mediana
Y18: =AVERAGE(X13:X16) -> 1097.7125 | Z18: =MEDIAN(X13:X16) -> 1105.59
A32: TOTAIS DE CUSTOS E DE PREÇOS DE PASSAGENS E DIÁRIAS | H32: =SUM(H12:H31) -> 10977.1 | J32: =SUM(J12:J31) -> 0 | M32: =SUM(M12:M31) -> 27764.1 | O32: =SUM(O12:O31) -> 0
A33: NOME DO INFORMANTE: | G33: QUALIFICAÇÃO:
A35: ASSINATURA: | M35: DATA:
A37: OBSERVAÇÕES:
A38: 1 - VIAGENS DURANTE A EXECUÇÃO DOS SERVIÇOS, INCLUÍNDO REUNIÕES NA ADM. CENTRAL DA CODEVASF
A39: 2 - NÂO INCLUIR VIAGENS COM MOBILIZAÇÃO/DESMOBILIZAÇÃO DA EQUIPE QUE SERÃO CALCULADOS NO PSUP-IV
A40: 3 - AS DIÁRIAS COBREM DESPESAS COM TAXI, ALIMENTAÇÃO E HOSPEDAGEM
A41: 4 - INDICAR (A) PARA AS PASSAGENS AÉREAS E (T) PARA AS TERRESTRES
A42: 5 - CUSTO DO ITEM SEM LUCRO E SEM DESPESAS FISCAIS
A43: 6 - EXPORTAR O TOTAL DO CUSTO COM PASSAGENS E DIÁRIAS, RESPECTIVAMENTE, LINHAS "D1" E "D2" DO PSUP
A44: =CONCATENATE(";6 - PREÇO = CUSTO + LUCRO+ DESPESAS FISCAIS E SERÁ CALCULADO COM A SEGUINTE FORMULA:CUSTO*(1+0,1)*(1+",'FSUP-VI Det. Desp Fiscais'!G29,"%)") -> ;6 - PREÇO = CUSTO + LUCRO+ DESPESAS FISCAIS E SERÁ CALCULADO COM A SEGUINTE FORMULA:CUSTO*(1+0,1)*(1+13,31%)
A45: 7 - OS PREÇOS UNITÁRIOS SERÃO UTILIZADOS PARA FINS DE FATURARAMENTO
A46: 8 - AS PASSAGENS AÉREAS POSSUEM VALOR UNITÁRIO MÉDIO ENTRE OS TRECHOS SDU/BSB/SDU, GRU/BSB/GRU, POA/BSB/POA E SSA/BSB/SSA
A47: 9 - AS PASSAGENS TERRESTRES SÃO COM BASE NO VALOR DA PASSAGEM DA CAPITAL AO INTERIOR DO ESTADO DA BAHIA (MAIOR ESTADO DA ÁREA DE ATUAÇÃO DA CODEVASF)

Sheet FSUP-III Manutenção Operac
A3: MANUTENÇÃO OPERACIONAL | J3: CODIGO:
J4: FSUP-III
A5: NOME DA CONSULTORA:
A7: PROJETO: | C7: OBJETO: | J7: EDITAL:
A8: Meio Ambiente | C8: =FSUP!E8 -> Regularidade Ambiental - PGAI Projeto Hidroagrícola Jequitaí
A9: DISCRIMINAÇÃO | F9: UND | G9: QTD | H9: CUSTOS 2 | J9: PREÇOS 3
H10: UNT | I10: TOTAL | J10: UNT | K10: TOTAL | L10: Referência
A11: 1 VEÍCULOS
A12: 1.1 Aluguel de veículos 4x4 - Tipo Caminhonete (Cabine Dupla) | F12: mês | G12: 38.5 | H12: 5924 | I12: =ROUND(G12*H12,2) -> 228074 | J12: =ROUND((1+0.1)*(1+'FSUP-VI Det. Desp Fiscais'!$G$29/100)*H12,2) -> 7383.73 | K12: =ROUND(G12*J12,2) -> 284273.61 | L12: Embasa | M12: 60
A13: 1.2 Barco | F13: mês | G13: 0.25 | H13: 1065.12 | I13: =ROUND(G13*H13,2) -> 266.28 | J13: =ROUND((1+0.1)*(1+'FSUP-VI Det. Desp Fiscais'!$G$29/100)*H13,2) -> 1327.58 | K13: =ROUND(G13*J13,2) -> 331.9 | L13: Embasa | M13: 48
A14: Total dos custos e dos preços dos veículos | I14: =SUM(I12:I13) -> 228340.28 | K14: =SUM(K12:K13) -> 284605.51
A16: 2 MANUTENÇÃO E ADMINISTRAÇÃO DO ESCRITÓRIO DE APOIO (BRASÍLIA/DF)
A17: 2.1 Aluguel de escritório com mobiliário (Consultoria SICRO-Esc.1750,92+Mob.753,04) | F17: mês | G17: 12 | H17: 1090.7 | I17: =ROUND(G17*H17,2) -> 13088.4 | J17: =ROUND((1+0.1)*(1+'FSUP-VI Det. Desp Fiscais'!$G$29/100)*H17,2) -> 1359.46 | K17: =ROUND(G17*J17,2) -> 16313.52 | L17: Orse
A18: 2.2 Telefone (10557/ORSE) | F18: mês | G18: 12 | H18: 154.99 | I18: =ROUND(G18*H18,2) -> 1859.88 | J18: =ROUND((1+0.1)*(1+'FSUP-VI Det. Desp Fiscais'!$G$29/100)*H18,2) -> 193.18 | K18: 2318.16 | L18: Orse
A19: 2.3 Energia elétrica | C19: (10555/ORSE) | F19: mês | G19: 12 | H19: 180 | I19: 2160 | J19: =ROUND((1+0.1)*(1+'FSUP-VI Det. Desp Fiscais'!$G$29/100)*H19,2) -> 224.35 | K19: 2692.2 | L19: Embasa | M19: 180
A20: 2.4 água e esgoto (AGETOP-Agua/2755-Esgoto/2759) | F20: mês | G20: 12 | H20: 151.73 | I20: 1820.76 | J20: =ROUND((1+0.1)*(1+'FSUP-VI Det. Desp Fiscais'!$G$29/100)*H20,2) -> 189.12 | K20: 2269.44 | L20: SBC
A21: 2.5 Material de limpeza (10563/ORSE) | F21: mês | G21: 12 | H21: 114.15 | I21: 1369.8 | J21: =ROUND((1+0.1)*(1+'FSUP-VI Det. Desp Fiscais'!$G$29/100)*H21,2) -> 142.28 | K21: 1707.36 | L21: Embasa | M21: 114.15
A22: 2.6 Internet (10562/ORSE) | F22: mês | G22: 12 | H22: 89 | I22: 1068 | J22: =ROUND((1+0.1)*(1+'FSUP-VI Det. Desp Fiscais'!$G$29/100)*H22,2) -> 110.93 | K22: 1331.16 | L22: Orse
A23: 2.7 Material de escritório (10562/ORSE) | F23: mês | G23: 12 | H23: 30 | I23: 360 | J23: =ROUND((1+0.1)*(1+'FSUP-VI Det. Desp Fiscais'!$G$29/100)*H23,2) -> 37.39 | K23: 448.68 | L23: Orse
A24: Total dos custos e dos preços da manut. e adm. do escrit. de apoio em Jequitaí/MG | I24: =SUM(I17:I23) -> 21726.84 | K24: =SUM(K17:K23) -> 27080.52
A25: 3 EQUIPAMENTOS
A26: 3.1 Notebook (P0, P1, P2 e T1) - (Core i7, 8Gb RAM, 1Tb) | F26: mês | G26: 112 | H26: 18.72 | I26: =ROUND(G26*H26,2) -> 2096.64 | J26: =ROUND((1+0.1)*(1+'FSUP-VI Det. Desp Fiscais'!$G$29/100)*H26,2) -> 23.33 | K26: =ROUND(G26*J26,2) -> 2612.96 | L26: Orse | M26: =G26/36 -> 3.111111111 | N26: UNID/MÊS
A27: 3.2 GPS (Resolução Nativa de 176 x 220) | F27: mês | G27: 2.5 | H27: 55 | I27: =ROUND(G27*H27,2) -> 137.5 | J27: =ROUND((1+0.1)*(1+'FSUP-VI Det. Desp Fiscais'!$G$29/100)*H27,2) -> 68.55 | K27: =ROUND(G27*J27,2) -> 171.38 | L27: Embasa | M27: =G27/36 -> 0.06944444444 | N27: UNID/MÊS
A28: 3.3 Drone | F28: mês | G28: 1 | H28: 21233.94 | I28: =ROUND(G28*H28,2) -> 21233.94 | J28: =ROUND((1+0.1)*(1+'FSUP-VI Det. Desp Fiscais'!$G$29/100)*H28,2) -> 26466.2 | K28: =ROUND(G28*J28,2) -> 26466.2 | L28: Cotação | M28: =G28/36 -> 0.02777777778 | N28: UNID/MÊS
A29: 3.4 Máquina Fotográfica 24MP, Full HD, 28Gb (armadilha de fauna) | F29: mês | G29: 27 | H29: 1.46 | I29: =ROUND(G29*H29,2) -> 39.42 | J29: =ROUND((1+0.1)*(1+'FSUP-VI Det. Desp Fiscais'!$G$29/100)*H29,2) -> 1.82 | K29: =ROUND(G29*J29,2) -> 49.14 | L29: Embasa | M29: =G29/36 -> 0.75 | N29: UNID/MÊS
A30: Total dos custos e dos preços dos equip. e materiais de apoio | I30: =SUM(I26:I29) -> 23507.5 | K30: =SUM(K26:K29) -> 29299.68
A31: 4 SERVIÇOS GRÁFICOS
A32: 4.1 Relatórios do Contrato (média 50 folhas) | F32: unid. | G32: 12 | H32: =2.12*50 -> 106 | I32: =ROUND(G32*H32,2) -> 1272 | J32: =ROUND((1+0.1)*(1+'FSUP-VI Det. Desp Fiscais'!$G$29/100)*H32,2) -> 132.12 | K32: =ROUND(G32*J32,2) -> 1585.44
A33: 4.2 Impressão de Material de Divulgação (Folders - formato: a) aberto 15,0 x 59,5cm; b) fechado 15,0 x 15,0cm - em papel Couche Liso) | F33: unid. | G33: 720 | H33: 2.25 | I33: 1620 | J33: =ROUND((1+0.1)*(1+'FSUP-VI Det. Desp Fiscais'!$G$29/100)*H33,2) -> 2.8 | K33: 2016
A34: 4.3 Confecção de Faixas/Banners | F34: unid. | G34: 100 | H34: 91.61 | I34: 9161 | J34: =ROUND((1+0.1)*(1+'FSUP-VI Det. Desp Fiscais'!$G$29/100)*H34,2) -> 114.18 | K34: 11418
A35: 4.4 Impressão de Cartilhas/Apostilas - média de 30 páginas | F35: unid. | G35: 1000 | H35: =30*1.5 -> 45 | I35: 45000 | J35: =ROUND((1+0.1)*(1+'FSUP-VI Det. Desp Fiscais'!$G$29/100)*H35,2) -> 56.09 | K35: 56090
A36: 4.5 Jornal - 6 paginas | F36: unid. | G36: 1000 | H36: =1.5*6 -> 9 | I36: =ROUND(G36*H36,2) -> 9000 | J36: =ROUND((1+0.1)*(1+'FSUP-VI Det. Desp Fiscais'!$G$29/100)*H36,2) -> 11.22 | K36: =ROUND(G36*J36,2) -> 11220
A38: Total dos custos e dos preços dos serv. Gráficos | I38: =SUM(I32:I37) -> 66053 | K38: =SUM(K32:K37) -> 82329.44
A40: NOME DO INFORMANTE: | G40: QUALIFICAÇÃO:
A42: ASSINATURA: | H42: DATA:
A44: OBSERVAÇÃO:
A45: 1. Aluguel de veículos inclui combustível e manutenção até o limite de 3000km/mês / Aluguel de barco inclui combustível e manutenção e piloto habilitado
A46: 2. Custo do item sem lucro e despesas fiscais
A47: =CONCATENATE("3. Preço = custo + lucro + despesas fiscais. Para calcular o preço aplica-se a seguinte fórmula: custo*(1+0,1)*(1+",'FSUP-VI Det. Desp Fiscais'!G29,"%)") -> 3. Preço = custo + lucro + despesas fiscais. Para calcular o preço aplica-se a seguinte fórmula: custo*(1+0,1)*(1+13,31%)
A48: 4. Exportar " total custo" para a linha corresponde no FSUP. Os preços serão aplicados para fins de faturamento
A49: 5. Equipamentos e materiais de campo pessoais ou complementares para garantir a qualidade dos serviços de campo estão previstos na hora do profissional.
A50: 6. O Drone possui especificação mínima: Modelo DJI Mavic 2 PRO com 4 baterias extras, tem por finalidade, sempre que definido em OS, fazer registros da área do PHJ. As imagens devem estar georreferenciadas, os produtos a serem entregues são MDT e Ortomosaico, no mínimo.

Sheet FSUP-IV Mobiliz Desmob
A3: MOBILIZAÇÃO E DESMOBILIZAÇÃO | M3: CODIGO:
M4: FSUP-IV
A5: NOME DA CONSULTORA:
A7: PROJETO: | C7: OBJETO: | M7: EDITAL:
A8: Meio Ambiente | C8: =FSUP!E8 -> Regularidade Ambiental - PGAI Projeto Hidroagrícola Jequitaí
A9: DISCRIMINAÇÃO | D9: SÍMB. | E9: UNID | F9: QTD. | G9: MOBILIZAÇÃO | K9: DESMOBILIZAÇÃO
G10: CUSTO | I10: PREÇO | K10: CUSTO | M10: PREÇO
G11: UNITÁRIO | H11: TOTAL | I11: UNITÁRIO | J11: TOTAL | K11: UNITÁRIO | L11: TOTAL | M11: UNITÁRIO | N11: TOTAL
A12: 1. DESLOCAMENTO DA EQUIPE
A13: 1.1 Passagens aéreas
A14: a) Coordenador | D14: P0 | E14: unid. | F14: 1 | G14: ='FSUP-II VIAGENS'!G13 -> 1097.71 | H14: =ROUND(F14*G14,2) -> 1097.71 | J14: =ROUND(F14*I14,2) -> 0
D15: P0 | E15: unid. | F15: 1 | K15: =G14 -> 1097.71 | L15: =H14 -> 1097.71 | M15: =I14 -> 0 | N15: =J14 -> 0
A24: 1.2 Diárias
A25: a) Coordenador | D25: P0 | E25: unid. | F25: 1 | H25: ='FSUP-II VIAGENS'!L13 -> 305.1
A41: TOTAIS DE CUSTOS E DE PREÇOS DE MOBILIZAÇÃO/DESMOBILIZAÇÃO | H41: =SUM(H12:H40) -> 1402.81 | J41: =SUM(J12:J40) -> 0 | L41: =SUM(L12:L40) -> 1097.71 | N41: =SUM(N12:N40) -> 0
A42: NOME DO INFORMANTE: | G42: QUALIFICAÇÃO:
A44: ASSINATURA: | L44: DATA:
A46: OBS: 1 - Custo do item sem lucro e sem despesas fiscais. Os totais detes deverão ser exportados para o item correspondente no FSUP
A47: 2 - Preço = custo + lucro + despesas fiscais e será calculado com a seguinte fórmula: custo*(1+0,1)*(1+0,1396). O preço será utilizado para fins de faturamento

Sheet FSUP-V Det. custos Adm.
A3: DETALHAMENTO DOS CUSTOS DE ADMINISTRAÇÃO | G3: CODIGO:
G4: FSUP-V
A5: NOME DA CONSULTORA:
A7: PROJETO: | C7: OBJETO: | G7: EDITAL:
A8: Meio Ambiente | C8: =FSUP!E8 -> Regularidade Ambiental - PGAI Projeto Hidroagrícola Jequitaí
A9: SEQ. | B9: DISCRIMINAÇÃO | F9: VALORES
F10: % | G10: R$
A11: 1 | B11: Custos da equipe da administração central da empresa consultora(diretoria, pessoal técnico de apoio e pessoal administrativo não diretamente vinculado à prestação dos serviços) | F11: 3 | G11: =ROUND(F11/$F$38*FSUP!N$33,2) -> 32908.28
A12: 2 | B12: Outras despesas que afetam o custo de produção como treinamento, biblioteca, programa de qualidade, auditoria interna e externa | F12: 3 | G12: =ROUND(F12/$F$38*FSUP!N$33,2) -> 32908.28
A13: 3 | B13: Despesas com aluguéis, comunicação, manutenção e transporte não diretamente relacionados com o custo direto dos serviços | F13: 2 | G13: =ROUND(F13/$F$38*FSUP!N$33,2) -> 21938.86
B38: TOTAIS DO CUSTO DE ADMINISTRAÇÃO | F38: =SUM(F11:F22) -> 8 | G38: =SUM(G11:G37) -> 87755.42
A40: NOME DO INFORMANTE: | D40: QUALIFICAÇÃO:
A41: ASSINATURA: | F41: DATA:
A42: OBSERVAÇAO:
A43: 1 - RELACIONAR OS CUSTOS DE ADMINISTRAÇÃO COM RESPECTIVOS PERCENTUAIS INCIDENTES NA MÃO -DE-OBRA DOS
A44: SERVIÇOS

Sheet FSUP-VI Det. Desp Fiscais
A3: DETALHAMENTO DAS DESPESAS FISCAIS | H3: CODIGO:
H4: FSUP-VI
A5: NOME DA CONSULTORA:
A7: PROJETO: | C7: OBJETO: | H7: EDITAL:
A8: Meio Ambiente | C8: =FSUP!E8 -> Regularidade Ambiental - PGAI Projeto Hidroagrícola Jequitaí
A9: DISCRIMINAÇÃO 1 | F9: VALORES
F10: DF (%) 2 | G10: DF' (%) 3 | H10: R$
A12: 1 - ISS | F12: 2.5 | G12: =(1/(1-$F$29/100))*F12 -> 2.83286119 | H12: =ROUND(G12/G$29*FSUP!N$35,2) -> 48785.39
A13: 2 - PIS | F13: 1.65 | G13: =(1/(1-$F$29/100))*F13 -> 1.869688385 | H13: =ROUND(G13/G$29*FSUP!N$35,2) -> 32198.36
A14: 3 - COFINS | F14: 7.6 | G14: =(1/(1-$F$29/100))*F14 -> 8.611898017 | H14: =ROUND(G14/G$29*FSUP!N$35,2) -> 148307.59
A29: TOTAIS DE DESPESAS FISCAIS | F29: =SUM(F12:F28) -> 11.75 | G29: =ROUND(SUM(G12:G14),2) -> 13.31 | H29: =SUM(H12:H28) -> 229291.34
A30: NOME DO INFORMANTE: | F30: QUALIFICAÇÃO:
A32: ASSINATURA: | G32: DATA:
A34: Observação:
A35: 1 - DISCRIMINAR OS TRIBUTOS QUE INCIDEM SOBRE OS CUSTOS DA PRESTAÇÃO DOS SERVIÇOS
A36: =CONCATENATE("2 - DF = INDICAR OS % DE CADA TRIBUTO E A SOMA DOS MESMOS (ISS ",F12,"% + PIS 1,65% + COFINS 7,60% = ",F29,"%). ") -> 2 - DF = INDICAR OS % DE CADA TRIBUTO E A SOMA DOS MESMOS (ISS 2,5% + PIS 1,65% + COFINS 7,60% = 11,75%).
A37: OBS.: Tendo em vista que o contrato será desenvolvido em localidades diversas, foi adotada a alíquota de 5% de ISS,
A38: usual em muitos municípios.
A39: 3 - AS DESPESAS FISCAIS (DF) INCIDEM SOBRE O TOTAL DA FATURA E NÃO SOBRE OS CUSTOS INCORRIDOS,
A40: DEVENDO SER CALCULADO O DF' APLICANDO-SE A SEGUINTE FÓRMULA:
A41: DF' = { [ 1 / ( 1 - DF) ] - 1 } x 100
A42: =CONCATENATE("DF' = { [ 1 / ( 1 - (",F29,"%) ] - 1 } x 100)") -> DF' = { [ 1 / ( 1 - (11,75%) ] - 1 } x 100)
A43: =CONCATENATE("DF' = (",G29,"% . APLICAR O % ENCONTRADO NA LINHA H DO FSUP PARA CALCULAR AS DESPESAS FISCAIS)") -> DF' = (13,31% . APLICAR O % ENCONTRADO NA LINHA H DO FSUP PARA CALCULAR AS DESPESAS FISCAIS)
A44: O TOTAL CALCULADO NA LINHA "H" DO PFSUP SERÁ IMPORTADO PARA COMPOR ESTE DETALHAMENTO.
A45: O TOTAL CALCULADO NA LINHA "H" DO PFSUP SERÁ IMPORTADO PARA COMPOR ESTE DETALHAMENTO.

Sheet FSUP-VII Det. Enc. Sociais
A3: DETALHAMENTO DOS ENCARGOS SOCIAIS | G3: CODIGO:
G4: FSUP-VII
A5: NOME DA CONSULTORA:
A7: PROJETO: | C7: OBJETO: | G7: EDITAL:
A8: Meio Ambiente | C8: =FSUP!E8 -> Regularidade Ambiental - PGAI Projeto Hidroagrícola Jequitaí
A9: DISCRIMINAÇÃO | F9: VALORES
F10: % | G10: R$
A11: A | B11: ENCARGOS SOCIAIS BÁSICOS
A12: A1 | B12: Seconci | F12: 0.012 | G12: =ROUND(F12*'FSUP-I EQUIPE TÉCNICA'!L$42,2) -> 13163.31
A13: A2 | B13: INSS | F13: 0.2 | G13: =ROUND(F13*'FSUP-I EQUIPE TÉCNICA'!L$42,2) -> 219388.55
A14: A3 | B14: FGTS | F14: 0.08 | G14: =ROUND(F14*'FSUP-I EQUIPE TÉCNICA'!L$42,2) -> 87755.42
A15: A4 | B15: Incra | F15: 0.002 | G15: =ROUND(F15*'FSUP-I EQUIPE TÉCNICA'!L$42,2) -> 2193.89
A16: A5 | B16: Salário Educação | F16: 0.025 | G16: =ROUND(F16*'FSUP-I EQUIPE TÉCNICA'!L$42,2) -> 27423.57
A17: A6 | B17: Sebrae | F17: 0.006 | G17: =ROUND(F17*'FSUP-I EQUIPE TÉCNICA'!L$42,2) -> 6581.66
A18: A7 | B18: Seguro contra acidente | F18: 0.03 | G18: =ROUND(F18*'FSUP-I EQUIPE TÉCNICA'!L$42,2) -> 32908.28
A19: A8 | B19: Senai | F19: 0.01 | G19: =ROUND(F19*'FSUP-I EQUIPE TÉCNICA'!L$42,2) -> 10969.43
A20: A9 | B20: Sesi | F20: 0.015 | G20: =ROUND(F20*'FSUP-I EQUIPE TÉCNICA'!L$42,2) -> 16454.14
A21: SUBTOTAL DE "A" | F21: =ROUND(SUM(F12:F20),4) -> 0.38 | G21: =ROUND(SUM(G12:G20),2) -> 416838.25
A23: B | B23: ENCARGOS SOCIAIS QUE RECEBEM INCIDÊNCIA DE "A"
A24: B1 | B24: Repouso Semanal Remunerado | F24: 0 | G24: =ROUND(F24*'FSUP-I EQUIPE TÉCNICA'!L$42,2) -> 0
A25: B2 | B25: Feriados | F25: 0 | G25: =ROUND(F25*'FSUP-I EQUIPE TÉCNICA'!L$42,2) -> 0
A26: B3 | B26: Auxílio - Enfermidade | F26: 0.0066 | G26: =ROUND(F26*'FSUP-I EQUIPE TÉCNICA'!L$42,2) -> 7239.82
A27: B4 | B27: 13º Salário | F27: 0.0833 | G27: =ROUND(F27*'FSUP-I EQUIPE TÉCNICA'!L$42,2) -> 91375.33
A28: B5 | B28: Licença Paternidade | F28: 0.0006 | G28: =ROUND(F28*'FSUP-I EQUIPE TÉCNICA'!L$42,2) -> 658.17
A29: B6 | B29: faltas Justificadas | F29: 0.0056 | G29: =ROUND(F29*'FSUP-I EQUIPE TÉCNICA'!L$42,2) -> 6142.88
A30: B7 | B30: Dias de Chuvas | F30: 0 | G30: =ROUND(F30*'FSUP-I EQUIPE TÉCNICA'!L$42,2) -> 0
A31: B8 | B31: Auxílio Acidente de Trabalho | F31: 0.0008 | G31: =ROUND(F31*'FSUP-I EQUIPE TÉCNICA'!L$42,2) -> 877.55
A32: B9 | B32: Férias Gozadas | F32: 0.0883 | G32: =ROUND(F32*'FSUP-I EQUIPE TÉCNICA'!L$42,2) -> 96860.04
A33: B10 | B33: Salário Maternidade | F33: 0.0002 | G33: =ROUND(F33*'FSUP-I EQUIPE TÉCNICA'!L$42,2) -> 219.39
A34: SUBTOTAL DE "B" | F34: =ROUND(SUM(F24:F33),4) -> 0.1854 | G34: =ROUND(SUM(G24:G33),2) -> 203373.18
A36: C | B36: ENCARGOS SOCIAIS QUE NÃO RECEBEM INCIDÊNCIA DE "A"
A37: C1 | B37: Depósito por despedida sem justa causa | F37: 0.0247 | G37: =ROUND(F37*'FSUP-I EQUIPE TÉCNICA'!L$42,2) -> 27094.49
A38: C2 | B38: Férias | F38: 0.0178 | G38: =ROUND(F38*'FSUP-I EQUIPE TÉCNICA'!L$42,2) -> 19525.58
A39: C3 | B39: Indenização Adicional | F39: 0.0038 | G39: =ROUND(F39*'FSUP-I EQUIPE TÉCNICA'!L$42,2) -> 4168.38
A40: C4 | B40: Aviso prévio Trabalhado | F40: 0.0011 | G40: =ROUND(F40*'FSUP-I EQUIPE TÉCNICA'!L$42,2) -> 1206.64
A41: C5 | B41: Aviso prévio Indenizado | F41: 0.045 | G41: =ROUND(F41*'FSUP-I EQUIPE TÉCNICA'!L$42,2) -> 49362.42
A42: SUBTOTAL DE "C" | F42: =ROUND(SUM(F37:F41),4) -> 0.0924 | G42: =ROUND(SUM(G37:G41),2) -> 101357.51
A44: D | B44: REINCIDÊNCIAS
A45: D1 | B45: Reincidência de "A" sobre "B" | F45: 0.0705 | G45: =ROUND(F45*'FSUP-I EQUIPE TÉCNICA'!L$42,2) -> 77334.46
A46: D2 | B46: Reincidência de "A" sobre aviso prévio | F46: 0.004 | G46: =ROUND(F46*'FSUP-I EQUIPE TÉCNICA'!L$42,2) -> 4387.77
A47: SUBTOTAL DE "D" | F47: =SUM(F45:F46) -> 0.0745 | G47: =ROUND(SUM(G45:G46),2) -> 81722.23
A49: TOTAIS DE ENCARGOS SOCIAIS | F49: =ROUND(F21+F34+F42+F47,4) -> 0.7323 | G49: =ROUND(G21+G34+G42+G47,2) -> 803291.17
A50: NOME DO INFORMANTE: | D50: QUALIFICAÇÃO:
A52: ASSINATURA: | F52: DATA:
A54: Observação:
A55: 1 - DISCRIMINAR OS ENCARGOS SOCIAIS COM SEUS RESPECTIVOS PERCENTUAS TOTALIZANDO OS MESMOS.
A56: 2 - O % TOTAL SERÁ APLICADO PARA CÁLCULAR OS E. SOCIAIS INCIDENTES NA MÃO-DE-OBRA COM VÍNCULO, LINHA "B1" DO FSUP
